bitfinex/quotes_SOLUSD_20241029
["timestamp","ask_amount","ask_price","bid_price","bid_amount"]
[1730206567723,5.7645,179.71,179.68,7.5725997]
[1730206568029,0.1,179.73,179.68,47.3062]
[1730206568341,0.1,179.71,179.69,7.5725997]
[1730206569035,0.2,179.71,179.67,5.5657]
[1730206569234,0.1,179.69,179.67,13.1382997]
[1730206569954,0.2,179.69,179.67,7.5725997]
[1730206571756,0.1,179.69,179.68,7.5725997]
[1730206572249,0.1,179.7,179.68,7.5725997]
[1730206572562,0.2,179.71,179.69,7.5725997]
[1730206572738,0.1,179.7,179.67,19.48]
[1730206572927,0.2,179.7,179.68,7.5725997]
[1730206573133,0.2,179.69,179.67,7.5725997]
[1730206573551,0.1,179.69,179.67,7.5725997]
[1730206573854,0.1,179.69,179.68,7.5725997]
[1730206573855,0.2,179.69,179.68,7.5725997]
[1730206574445,0.1,179.69,179.68,7.5725997]
[1730206574646,0.2,179.69,179.68,7.5725997]
[1730206575348,0.1,179.69,179.68,7.5725997]
[1730206575555,0.2,179.69,179.68,7.5725997]
[1730206575738,0.1,179.69,179.68,7.5725997]
[1730206577163,0.2,179.71,179.68,27.0514997]
[1730206577455,0.1,179.7,179.68,19.4789]
[1730206577655,0.1,179.71,179.69,7.5725997]
[1730206577956,0.2,179.71,179.7,7.5725997]
[1730206579152,0.2,179.71,179.69,7.5725997]
[1730206581555,0.1,179.7,179.69,7.5725997]
[1730206582354,0.2,179.72,179.69,13.1376997]
[1730206582658,0.1,179.71,179.7,7.5725997]
[1730206582861,0.2,179.71,179.7,7.5725997]
[1730206585053,0.2,179.71,179.69,7.5725997]
[1730206585365,0.1,179.68,179.65,22.7981997]
[1730206585536,0.2,179.65,179.6,21.7783]
[1730206585736,0.2,179.64,179.61,7.5725997]
[1730206586040,0.2,179.64,179.62,7.5725997]
[1730206587462,0.2,179.64,179.62,13.1397997]
[1730206588360,0.1,179.64,179.62,13.1397997]
[1730206588567,0.2,179.64,179.62,13.1397997]
[1730206590144,0.1,179.64,179.63,7.5725997]
[1730206590343,0.2,179.64,179.63,7.5725997]
[1730206591039,0.1,179.64,179.63,7.5725997]
[1730206591446,0.2,179.65,179.63,7.5725997]
[1730206592132,0.1,179.66,179.64,7.5725997]
[1730206592341,0.1,179.67,179.65,7.5725997]
[1730206592668,0.1,179.67,179.66,7.5725997]
[1730206593937,0.2,179.68,179.66,7.5725997]
[1730206594139,0.2,179.68,179.66,13.1385997]
[1730206594339,0.1,179.67,179.66,13.1385997]
[1730206596968,0.2,179.64,179.61,19.4866]
[1730206597146,0.1,179.64,179.63,7.5725997]
[1730206597647,0.1,179.64,179.61,19.4866]
[1730206597648,5.5648,179.7,179.66,7.5725997]
[1730206598652,5.5645,179.71,179.67,7.5725997]
[1730206599764,5.5645,179.71,179.66,7.5725997]
[1730206600960,5.5645,179.71,179.66,13.1384997]
[1730206601153,13.1370997,179.71,179.66,5.5659]
[1730206601352,7.5725997,179.69,179.64,5.5665]
[1730206601650,7.5725997,179.67,179.62,27.0574997]
[1730206603670,7.5725997,179.67,179.62,21.4904997]
[1730206603857,7.5725997,179.66,179.62,13.9179]
[1730206604059,7.5725997,179.66,179.62,19.4852]
[1730206604457,13.1383997,179.67,179.62,27.0577997]
[1730206604872,7.5725997,179.66,179.62,13.9179]
[1730206605964,7.5725997,179.65,179.62,13.9179]
[1730206606266,7.5725997,179.66,179.62,13.9179]
[1730206606787,13.1386997,179.66,179.62,13.9179]
[1730206607663,7.5725997,179.65,179.6,16.2105]
[1730206607862,13.1386997,179.66,179.61,7.5725997]
[1730206608463,7.5725997,179.65,179.6,43.2706997]
[1730206608777,13.1392997,179.64,179.6,19.4876]
[1730206609080,7.5725997,179.64,179.6,19.4876]
[1730206609576,13.1391997,179.64,179.6,19.4876]
[1730206610077,7.5725997,179.64,179.6,19.4876]
[1730206610379,13.1393997,179.64,179.6,13.9198]
[1730206611985,7.5725997,179.63,179.6,13.9198]
[1730206612887,7.5725997,179.64,179.6,13.9198]
[1730206613176,5.5666,179.64,179.6,13.9198]
[1730206616372,6.52971107,179.64,179.59,7.5725997]
[1730206616578,14.10231077,179.64,179.57,19.4909]
[1730206616763,7.5725997,179.63,179.58,7.5725997]
[1730206617582,7.5725997,179.63,179.59,5.5682]
[1730206617884,13.1391997,179.64,179.59,13.1407997]
[1730206618876,7.5725997,179.65,179.59,13.1407997]
[1730206619078,20.0,179.64,179.59,13.1407997]
[1730206620288,25.5668,179.64,179.59,13.1407997]
[1730206620479,0.96326443,179.67,179.63,7.5725997]
[1730206620674,0.96326443,179.67,179.64,7.5725997]
[1730206621868,20.96326443,179.67,179.64,7.5725997]
[1730206622082,20.0,179.68,179.65,7.5725997]
[1730206622275,22.52412859,179.69,179.67,7.5725997]
[1730206622888,5.5644,179.72,179.67,7.5725997]
[1730206623271,13.1369997,179.72,179.67,7.5725997]
[1730206623482,13.1369997,179.72,179.64,19.483]
[1730206623664,13.1369997,179.72,179.67,7.5725997]
[1730206624372,20.0,179.7,179.66,7.5725997]
[1730206624773,27.5725997,179.7,179.65,13.1386997]
[1730206624991,20.0,179.71,179.64,13.9167]
[1730206625287,7.5725997,179.68,179.64,13.9167]
[1730206625583,7.5725997,179.67,179.62,21.8844]
[1730206625790,0.96276129,179.7,179.62,21.8844]
[1730206625791,7.5725997,179.66,179.62,21.8844]
[1730206625979,7.5725997,179.67,179.62,21.8844]
[1730206627070,7.5725997,179.67,179.62,29.4569997]
[1730206627376,5.5657,179.68,179.64,7.5725997]
[1730206628467,5.5657,179.68,179.62,21.8844]
[1730206628468,13.1382997,179.68,179.63,7.5725997]
[1730206630072,5.5657,179.68,179.64,7.5725997]
[1730206630672,5.5657,179.68,179.65,7.5725997]
[1730206630971,5.5657,179.68,179.64,7.5725997]
[1730206633592,0.96276129,179.7,179.64,7.5725997]
[1730206633793,20.0,179.68,179.63,13.1394997]
[1730206634094,19.97669078,179.68,179.63,13.1394997]
[1730206634980,25.54229078,179.68,179.63,13.1394997]
[1730206636270,25.54229078,179.68,179.64,7.5725997]
[1730206640879,7.5725997,179.65,179.61,19.4863]
[1730206641276,7.5725997,179.65,179.61,13.9187]
[1730206641473,7.5725997,179.62,179.58,15.6411]
[1730206641689,7.5725997,179.61,179.56,7.5725997]
[1730206641899,23.776884,179.66,179.54,35.4088]
[1730206641900,7.5725997,179.6,179.54,35.4088]
[1730206642103,7.5725997,179.6,179.55,7.5725997]
[1730206642397,7.5725997,179.6,179.56,2.23028501]
[1730206643007,13.1402997,179.61,179.56,13.1416997]
[1730206645177,5.5677,179.61,179.57,7.5725997]
[1730206645697,0.96293137,179.6,179.57,7.5725997]
[1730206645876,5.5677,179.61,179.57,7.5725997]
[1730206646185,13.1402997,179.61,179.56,13.1415997]
[1730206646773,13.1402997,179.61,179.55,21.4961997]
[1730206647197,13.1402997,179.61,179.56,7.5725997]
[1730206647405,13.1402997,179.61,179.55,21.4961997]
[1730206648503,13.1402997,179.61,179.55,27.0655997]
[1730206649081,13.1402997,179.61,179.56,27.0643997]
[1730206651182,5.5677,179.61,179.57,7.5725997]
[1730206651392,5.5677,179.61,179.58,7.5725997]
[1730206652108,20.0,179.62,179.59,7.5725997]
[1730206653110,25.5673,179.62,179.59,7.5725997]
[1730206655404,25.5673,179.62,179.58,7.5725997]
[1730206655782,25.5673,179.62,179.6,7.5725997]
[1730206657297,25.5673,179.62,179.59,7.5725997]
[1730206657507,25.5673,179.62,179.56,13.9229]
[1730206657705,33.1398997,179.62,179.57,7.5725997]
[1730206657878,7.5725997,179.61,179.56,21.4954997]
[1730206658079,47.0580997,179.62,179.57,7.5725997]
[1730206658878,7.5725997,179.61,179.55,7.5725997]
[1730206659278,7.5725997,179.61,179.54,29.8393]
[1730206659279,7.5725997,179.6,179.54,15.9149]
[1730206659494,5.5682,179.59,179.54,23.4874997]
[1730206659695,5.5682,179.59,179.54,7.5725997]
[1730206659881,13.1407997,179.59,179.54,7.5725997]
[1730206660778,7.5725997,179.6,179.54,7.5725997]
[1730206661597,13.1401997,179.61,179.55,7.5725997]
[1730206661787,20.0,179.6,179.55,7.5725997]
[1730206662504,20.0,179.6,179.51,16.1570178]
[1730206662505,5.5682,179.59,179.52,5.5702]
[1730206662707,20.0,179.57,179.53,7.5725997]
[1730206663180,7.5725997,179.56,179.5,16.0153]
[1730206663382,23.776884,179.56,179.51,7.5725997]
[1730206664180,20.0,179.55,179.51,7.5725997]
[1730206664602,5.5697,179.54,179.51,7.5725997]
[1730206666280,5.5697,179.54,179.5,16.0153]
[1730206666281,20.0,179.55,179.52,7.5725997]
[1730206666486,25.5685,179.58,179.54,7.5725997]
[1730206666701,0.9632041,179.55,179.54,7.5725997]
[1730206666907,25.5685,179.58,179.54,7.5725997]
[1730206667185,0.96319034,179.55,179.54,7.5725997]
[1730206667588,20.0,179.56,179.54,7.5725997]
[1730206667783,0.96319605,179.55,179.54,7.5725997]
[1730206668692,5.5686,179.58,179.54,13.1422997]
[1730206668904,5.5679,179.6,179.56,7.5725997]
[1730206669204,0.96320685,179.58,179.56,7.5725997]
[1730206669610,6.53170685,179.58,179.56,7.5725997]
[1730206671318,0.96320685,179.58,179.57,7.5725997]
[1730206673818,5.5683,179.59,179.57,7.5725997]
[1730206677300,5.5683,179.59,179.55,7.5725997]
[1730206678424,5.5683,179.59,179.56,7.5725997]
[1730206678925,5.5683,179.59,179.51,19.4975]
[1730206679105,5.5683,179.59,179.55,7.5725997]
[1730206680927,20.0,179.58,179.55,7.5725997]
[1730206681229,51.3494837,179.58,179.53,7.5725997]
[1730206681600,57.1304285,179.58,179.53,7.5725997]
[1730206681808,57.1304285,179.58,179.52,7.5725997]
[1730206682223,20.0,179.54,179.5,23.5878997]
[1730206682925,27.5725997,179.52,179.45,13.9312]
[1730206683131,27.5725997,179.52,179.46,7.5725997]
[1730206683335,27.5725997,179.52,179.47,7.5725997]
[1730206683633,20.0,179.52,179.48,7.5725997]
[1730206684741,20.0,179.5,179.48,7.5725997]
[1730206684909,20.0,179.5,179.49,7.5725997]
[1730206685525,5.5712,179.5,179.47,7.5725997]
[1730206686635,5.5707,179.51,179.47,7.5725997]
[1730206687036,20.0,179.5,179.47,7.5725997]
[1730206687923,20.0,179.5,179.48,7.5725997]
[1730206688734,5.5704,179.52,179.49,7.5725997]
[1730206688938,5.5704,179.52,179.43,22.1201]
[1730206689235,19.4964,179.52,179.48,7.5725997]
[1730206689616,23.776884,179.51,179.48,7.5725997]
[1730206690813,19.31075911,179.53,179.43,16.5472]
[1730206691028,25.5704,179.52,179.5,7.5725997]
[1730206691336,25.5704,179.52,179.49,7.5725997]
[1730206691632,25.5704,179.52,179.44,13.9322]
[1730206691854,20.0,179.5,179.45,7.5725997]
[1730206692215,20.0,179.5,179.46,7.5725997]
[1730206692517,20.0,179.5,179.47,7.5725997]
[1730206692913,23.776884,179.5,179.47,6.5725997]
[1730206693134,20.0,179.49,179.46,7.5725997]
[1730206694014,5.5716,179.48,179.45,7.5725997]
[1730206694214,6.53501347,179.48,179.45,7.5725997]
[1730206694535,20.0,179.47,179.44,7.5725997]
[1730206695138,20.0,179.47,179.45,7.5725997]
[1730206696133,25.5713,179.49,179.45,7.5725997]
[1730206696741,25.5713,179.49,179.46,7.5725997]
[1730206697240,25.5713,179.49,179.45,7.5725997]
[1730206697439,25.5713,179.49,179.43,16.5472]
[1730206697440,33.1438997,179.49,179.44,7.5725997]
[1730206697615,17.33000074,179.49,179.48,7.5725997]
[1730206697934,47.33000074,179.49,179.48,7.5725997]
[1730206698140,52.90130074,179.49,179.48,7.5725997]
[1730206698531,5.5713,179.49,179.48,7.5725997]
[1730206699432,5.5713,179.49,179.47,7.5725997]
[1730206700036,13.35395853,179.52,179.47,7.5725997]
[1730206700239,20.0,179.5,179.47,7.5725997]
[1730206702746,25.5707,179.51,179.46,7.5725997]
[1730206703321,27.5725997,179.47,179.39,22.6803]
[1730206703516,27.5725997,179.47,179.39,16.502]
[1730206703722,20.0,179.47,179.42,7.5725997]
[1730206704350,20.0,179.47,179.44,7.5725997]
[1730206704721,5.5722,179.46,179.45,7.5725997]
[1730206705331,5.5722,179.46,179.44,7.5725997]
[1730206705529,5.5722,179.46,179.43,7.5725997]
[1730206708249,5.5722,179.46,179.39,16.502]
[1730206708422,5.5722,179.46,179.43,7.5725997]
[1730206709269,5.5722,179.46,179.42,7.5725997]
[1730206709743,20.0,179.45,179.41,7.5725997]
[1730206710334,5.5728,179.44,179.42,7.5725997]
[1730206711327,43.776884,179.43,179.38,7.5725997]
[1730206711548,43.776884,179.43,179.39,7.5725997]
[1730206711742,20.0,179.43,179.4,7.5725997]
[1730206712248,25.5728,179.44,179.4,7.5725997]
[1730206712552,25.5728,179.44,179.41,7.5725997]
[1730206713547,0.11522226,179.42,179.41,7.5725997]
[1730206713938,0.11522226,179.42,179.36,5.5753]
[1730206714138,0.11522226,179.42,179.39,7.5725997]
[1730206714824,0.11522226,179.42,179.41,7.5725997]
[1730206715936,0.11522226,179.42,179.41,13.1463997]
[1730206716142,0.11522226,179.42,179.4,15.1108]
[1730206716344,0.11522226,179.42,179.41,7.5725997]
[1730206718138,0.11522226,179.42,179.41,13.1463997]
[1730206719248,0.11522226,179.42,179.41,7.5725997]
[1730206720136,5.68872226,179.42,179.4,15.1108]
[1730206720443,5.68872226,179.42,179.41,7.5725997]
[1730206720650,0.11522226,179.42,179.41,7.5725997]
[1730206724456,5.68872226,179.42,179.41,7.5725997]
[1730206724954,0.11522226,179.42,179.41,7.5725997]
[1730206731447,5.68872226,179.42,179.41,7.5725997]
[1730206732050,5.68872226,179.42,179.4,15.1108]
[1730206732051,5.68872226,179.42,179.36,15.6644]
[1730206732252,5.68872226,179.42,179.4,7.5725997]
[1730206732652,5.68872226,179.42,179.36,15.6644]
[1730206732839,5.68872226,179.42,179.4,7.5725997]
[1730206733350,5.68872226,179.42,179.36,15.6644]
[1730206733652,0.11938376,179.41,179.4,7.5725997]
[1730206734546,5.69318376,179.41,179.4,7.5725997]
[1730206735670,5.69318376,179.41,179.36,15.6644]
[1730206735871,5.69318376,179.41,179.4,7.5725997]
[1730206739175,5.69318376,179.41,179.36,15.6644]
[1730206739402,5.69318376,179.41,179.39,7.5725997]
[1730206740569,5.69318376,179.41,179.4,7.5725997]
[1730206743680,0.11938376,179.41,179.4,7.5725997]
[1730206748855,0.11938376,179.41,179.39,5.5741]
[1730206749177,0.11938376,179.41,179.4,7.5725997]
[1730206753266,0.11938376,179.41,179.39,5.5742]
[1730206753460,0.10873358,179.4,179.39,5.5742]
[1730206753673,0.10873358,179.4,179.39,13.1467997]
[1730206756979,0.10873358,179.4,179.39,43.4371985]
[1730206762192,0.10873358,179.4,179.39,13.1467997]
[1730206762392,0.10873358,179.4,179.39,5.5742]
[1730206762588,0.10873358,179.4,179.39,13.1467997]
[1730206763567,0.10873358,179.4,179.38,13.9363]
[1730206763869,0.10873358,179.4,179.39,7.5725997]
[1730206764286,5.68283358,179.4,179.36,21.2397]
[1730206764492,5.68283358,179.4,179.39,7.5725997]
[1730206764701,0.10873358,179.4,179.39,7.5725997]
[1730206767695,0.10873358,179.4,179.36,21.2397]
[1730206767901,0.10873358,179.4,179.39,7.5725997]
[1730206773701,0.22375524,179.4,179.39,7.5725997]
[1730206774502,0.11502166,179.4,179.39,7.5725997]
[1730206775895,5.68912166,179.4,179.39,7.5725997]
[1730206776079,9.84456301,179.4,179.39,7.5725997]
[1730206776787,5.68912166,179.4,179.39,7.5725997]
[1730206777105,9.84413676,179.4,179.37,7.5725997]
[1730206777301,5.68912166,179.4,179.37,7.5725997]
[1730206779479,5.68912166,179.4,179.38,7.5725997]
[1730206781401,5.68912166,179.4,179.39,7.5725997]
[1730206781718,9.8427369,179.4,179.39,7.5725997]
[1730206782201,9.8427369,179.4,179.38,7.5725997]
[1730206782401,5.68912166,179.4,179.38,7.5725997]
[1730206783293,5.68912166,179.4,179.36,7.5725997]
[1730206783879,11.51043444,179.4,179.36,7.5725997]
[1730206784694,11.51043444,179.4,179.36,7.10537239]
[1730206784901,4.15073349,179.39,179.36,7.10537239]
[1730206785104,11.51043444,179.4,179.36,7.10537239]
[1730206785406,5.5747,179.38,179.36,7.10537239]
[1730206785784,5.5747,179.38,179.35,7.5725997]
[1730206786704,5.5747,179.38,179.36,7.5725997]
[1730206787000,5.5747,179.38,179.37,7.5725997]
[1730206788690,5.93633444,179.4,179.37,7.5725997]
[1730206788905,5.5744,179.39,179.37,7.5725997]
[1730206789501,5.5744,179.39,179.36,7.5725997]
[1730206792989,11.51043444,179.4,179.37,7.5725997]
[1730206793297,5.93633444,179.4,179.39,7.5725997]
[1730206793500,6.05895499,179.4,179.39,7.5725997]
[1730206793881,6.05895499,179.4,179.38,7.5725997]
[1730206794501,5.94393333,179.4,179.38,7.5725997]
[1730206794799,11.51803333,179.4,179.38,7.5725997]
[1730206795001,12.48037281,179.4,179.38,7.5725997]
[1730206795300,11.51803333,179.4,179.38,7.5725997]
[1730206795504,11.51803333,179.4,179.39,7.5725997]
[1730206796802,11.51803333,179.4,179.32,15.9808]
[1730206797012,11.51803333,179.4,179.38,7.5725997]
[1730206797580,5.94393333,179.4,179.39,7.5725997]
[1730206797909,0.12262055,179.4,179.39,7.5725997]
[1730206798205,5.69672055,179.4,179.39,7.5725997]
[1730206798384,0.12262055,179.4,179.39,7.5725997]
[1730206800503,0.12262055,179.4,179.38,16.601]
[1730206800712,0.12262055,179.4,179.39,7.5725997]
[1730206801098,0.12262055,179.4,179.38,16.601]
[1730206801296,0.12262055,179.4,179.39,7.5725997]
[1730206802610,5.69672055,179.4,179.39,7.5725997]
[1730206802908,0.12262055,179.4,179.39,7.5725997]
[1730206804000,0.12262055,179.4,179.39,37.8629985]
[1730206804205,0.12262055,179.4,179.39,43.4373985]
[1730206804402,0.12262055,179.4,179.39,43.5373985]
[1730206805598,0.12262055,179.4,179.39,45.76998381]
[1730206806114,0.116657,179.41,179.39,69.64686781]
[1730206806301,0.116657,179.41,179.4,40.09558381]
[1730206807814,0.116657,179.41,179.4,45.66968381]
[1730206811218,0.116657,179.41,179.4,2.23258531]
[1730206811419,0.116657,179.41,179.4,9.80518501]
[1730206811608,0.116657,179.41,179.4,7.5725997]
[1730206811926,5.690457,179.41,179.38,16.601]
[1730206812296,5.690457,179.41,179.38,7.5725997]
[1730206812498,5.690457,179.41,179.34,22.1081]
[1730206812499,5.690457,179.41,179.39,7.5725997]
[1730206812806,5.690457,179.41,179.38,7.5725997]
[1730206813015,5.690457,179.41,179.37,7.5725997]
[1730206813614,0.11878102,179.38,179.37,7.5725997]
[1730206814917,0.11878102,179.38,179.34,16.5322]
[1730206815104,5.69348102,179.38,179.37,7.5725997]
[1730206816606,5.69348102,179.38,179.34,16.5322]
[1730206816811,5.69348102,179.38,179.37,7.5725997]
[1730206817509,0.11878102,179.38,179.37,7.5725997]
[1730206820830,5.69348102,179.38,179.34,22.1081]
[1730206820995,5.69348102,179.38,179.37,7.5725997]
[1730206822331,0.11878102,179.38,179.37,7.5725997]
[1730206822715,0.104595,179.39,179.37,13.1475997]
[1730206823019,0.104595,179.39,179.38,7.5725997]
[1730206823406,0.104595,179.39,179.38,31.4494837]
[1730206823727,0.104595,179.39,179.38,68.2884825]
[1730206824112,0.11255607,179.4,179.39,37.8629985]
[1730206824627,0.11255607,179.4,179.39,45.66984027]
[1730206828111,0.11255607,179.4,179.39,7.80684177]
[1730206828434,0.11255607,179.4,179.39,45.66984027]
[1730206828639,0.11255607,179.4,179.39,15.37944147]
[1730206828933,0.11255607,179.4,179.39,7.80684177]
[1730206829232,0.11255607,179.4,179.39,15.37944147]
[1730206829813,0.11255607,179.4,179.39,7.80684177]
[1730206830023,0.11255607,179.4,179.39,15.37944147]
[1730206833737,0.21895486,179.4,179.39,15.37944147]
[1730206834441,0.10639879,179.4,179.39,15.37944147]
[1730206835440,0.10639879,179.4,179.39,13.1469997]
[1730206835739,0.10639879,179.4,179.39,15.37957844]
[1730206839015,0.10639879,179.4,179.39,7.80697874]
[1730206839237,0.10639879,179.4,179.39,2.23257874]
[1730206839542,0.10639879,179.4,179.39,7.5725997]
[1730206840035,5.68049879,179.4,179.39,7.5725997]
[1730206840356,0.10639879,179.4,179.39,7.5725997]
[1730206850349,0.10639879,179.4,179.39,45.67001439]
[1730206850531,0.10639879,179.4,179.39,7.80701589]
[1730206850720,0.10639879,179.4,179.39,43.4373985]
[1730206850924,0.10639879,179.4,179.39,45.6698781]
[1730206852742,0.10639879,179.4,179.39,15.3794793]
[1730206853641,0.22487514,179.4,179.39,15.3794793]
[1730206854335,0.11847635,179.4,179.39,15.3794793]
[1730206858441,0.11847635,179.4,179.39,15.37937547]
[1730206858962,0.11847635,179.4,179.39,7.80677577]
[1730206859144,0.11847635,179.4,179.39,15.37937547]
[1730206860546,0.11847635,179.4,179.39,45.66977427]
[1730206861337,0.11847635,179.4,179.39,15.37937547]
[1730206861542,0.11847635,179.4,179.39,2.23237577]
[1730206861972,5.69257635,179.4,179.39,2.23237577]
[1730206862140,0.11847635,179.4,179.39,9.80497547]
[1730206863229,5.69257635,179.4,179.39,9.80497547]
[1730206863439,0.11847635,179.4,179.39,9.80497547]
[1730206863638,0.11847635,179.4,179.39,2.23237577]
[1730206863934,0.11847635,179.4,179.39,9.80497547]
[1730206864757,0.11847635,179.4,179.39,7.5725997]
[1730206864945,0.11847635,179.4,179.39,9.80535084]
[1730206866336,0.11847635,179.4,179.39,15.37975084]
[1730206866987,0.11847635,179.4,179.39,15.3794519]
[1730206868363,0.11847635,179.4,179.39,13.1469997]
[1730206868659,0.11847635,179.4,179.39,15.37940329]
[1730206869337,0.11847635,179.4,179.39,13.1469997]
[1730206869536,0.11847635,179.4,179.39,15.37940528]
[1730206872381,0.11847635,179.4,179.39,15.37942169]
[1730206873665,0.21939399,179.4,179.39,15.37942169]
[1730206874346,0.10091764,179.4,179.39,15.37942169]
[1730206877044,0.10091764,179.4,179.39,45.66982049]
[1730206877259,0.10091764,179.4,179.39,15.37942169]
[1730206878570,0.07684764,179.4,179.39,15.37942169]
[1730206879143,0.07684764,179.4,179.39,15.79349004]
[1730206879347,0.07684764,179.4,179.39,13.56106805]
[1730206879668,0.07684764,179.4,179.39,15.79425616]
[1730206883149,0.07684764,179.4,179.39,15.79395333]
[1730206883675,0.07684764,179.4,179.39,2.64695363]
[1730206883848,0.07684764,179.4,179.39,10.21955333]
[1730206884047,0.07684764,179.4,179.39,9.80504725]
[1730206884471,0.07684764,179.4,179.39,15.37944725]
[1730206886448,0.07684764,179.4,179.39,15.79395333]
[1730206889174,0.07684764,179.4,179.39,15.37944725]
[1730206890287,0.07684764,179.4,179.39,15.79395333]
[1730206891081,0.07684764,179.4,179.39,15.7938131]
[1730206892249,0.07684764,179.4,179.39,15.8938131]
[1730206893881,0.19139017,179.4,179.39,15.8938131]
[1730206894476,0.11454253,179.4,179.39,15.79405806]
[1730206894674,0.11454253,179.4,179.39,15.89405806]
[1730206896480,0.11454253,179.4,179.39,15.79405806]
[1730206896686,0.11454253,179.4,179.39,15.89405806]
[1730206898879,0.1010165,179.41,179.39,69.96134086]
[1730206899083,0.10891847,179.42,179.41,7.5725997]
[1730206899383,0.11040231,179.43,179.41,7.5725997]
[1730206899384,0.11040231,179.43,179.41,10.21965806]
[1730206899579,0.10297188,179.44,179.42,9.80503339]
[1730206899781,0.10297188,179.44,179.43,2.23243369]
[1730206899989,0.10297188,179.44,179.43,9.80503339]
[1730206901465,0.10297188,179.44,179.43,15.37823339]
[1730206901763,0.10297188,179.44,179.43,15.37798504]
[1730206912803,0.10297188,179.44,179.43,15.37790927]
[1730206913808,0.22072399,179.44,179.43,15.37790927]
[1730206914378,0.11775211,179.44,179.43,15.37790927]
[1730206917498,0.11775211,179.44,179.43,7.80530957]
[1730206917704,0.11775211,179.44,179.43,15.37788362]
[1730206920118,0.11775211,179.44,179.43,15.37788195]
[1730206922211,0.11775211,179.44,179.43,14.37788195]
[1730206922590,0.11775211,179.44,179.43,14.3778966]
[1730206922907,0.11775211,179.44,179.43,14.3778947]
[1730206923900,0.11775211,179.44,179.43,14.37790643]
[1730206926219,0.11775211,179.44,179.43,12.1457997]
[1730206926431,0.11775211,179.44,179.43,14.37790272]
[1730206928902,13.0588519,179.5,179.43,28.31090272]
[1730206929221,12.09048436,179.5,179.49,7.5725997]
[1730206930507,12.09048436,179.5,179.49,9.8043464]
[1730206931126,12.09048436,179.5,179.49,15.3756464]
[1730206933493,12.19843315,179.5,179.49,13.1438997]
[1730206933839,12.19843315,179.5,179.49,15.37556093]
[1730206934531,12.08815476,179.5,179.49,13.1438997]
[1730206935323,12.08815476,179.5,179.49,15.37555262]
[1730206935525,12.08815476,179.5,179.49,13.1438997]
[1730206936232,0.10794879,179.5,179.49,13.1438997]
[1730206940042,0.10794879,179.5,179.49,43.4342985]
[1730206940324,0.10794879,179.5,179.49,45.66590811]
[1730206940704,0.10794879,179.5,179.49,43.4342985]
[1730206940906,0.10794879,179.5,179.49,15.37544424]
[1730206941504,0.11139865,179.51,179.5,23.876884]
[1730206941704,0.11139865,179.51,179.5,64.07142704]
[1730206941904,0.11900912,179.52,179.5,56.29882734]
[1730206942104,0.11900912,179.52,179.51,7.80224454]
[1730206942316,0.11900912,179.52,179.51,5.5707]
[1730206942517,0.11900912,179.52,179.51,31.57888682]
[1730206942930,0.11900912,179.52,179.51,7.80200282]
[1730206943332,0.11900912,179.52,179.51,15.37460252]
[1730206944640,0.11900912,179.52,179.51,13.1432997]
[1730206945311,0.11900912,179.52,179.51,5.5707]
[1730206945511,0.11900912,179.52,179.51,13.1432997]
[1730206951317,0.11900912,179.52,179.49,13.9283]
[1730206952055,0.11900912,179.52,179.49,21.5008997]
[1730206952625,0.11900912,179.52,179.49,27.0721997]
[1730206953128,0.11900912,179.52,179.5,7.5725997]
[1730206953526,0.1213548,179.51,179.5,7.5725997]
[1730206953721,0.1213548,179.51,179.5,13.1433997]
[1730206954642,0.1213548,179.51,179.45,15.6117]
[1730206954844,0.1213548,179.51,179.48,7.5725997]
[1730206955623,0.1213548,179.51,179.47,7.5725997]
[1730206956648,0.1213548,179.51,179.48,7.5725997]
[1730206957027,0.1213548,179.51,179.48,13.1439997]
[1730206960150,0.1213548,179.51,179.49,7.5725997]
[1730206961248,0.1213548,179.51,179.49,13.1437997]
[1730206963122,0.1213548,179.51,179.49,27.0720997]
[1730206963327,0.1213548,179.51,179.5,7.5725997]
[1730206964454,0.1213548,179.51,179.5,13.1435997]
[1730206964852,7.5725997,179.55,179.5,13.1435997]
[1730206965032,7.5725997,179.55,179.5,27.0710997]
[1730206966731,13.1420997,179.55,179.5,27.0710997]
[1730206969153,5.5695,179.55,179.51,7.5725997]
[1730206969858,13.1420997,179.55,179.51,7.5725997]
[1730206971043,13.1420997,179.55,179.5,13.1432997]
[1730206973662,0.11397866,179.51,179.5,27.0707997]
[1730206974952,0.11397866,179.51,179.5,28.80228721]
[1730206975536,0.11397866,179.51,179.5,26.5707997]
[1730206976659,0.11397866,179.51,179.5,13.9275]
[1730206978253,0.11397866,179.51,179.5,19.4985]
[1730206978659,0.11397866,179.51,179.5,27.0710997]